bitfinex-derivatives/quotes_BTCF0:USTF0_20250629
["timestamp","ask_amount","ask_price","bid_price","bid_amount"]
[1751209698478,0.06677416,108020.0,108010.0,1.71362136]
[1751209698670,0.06677416,108020.0,108010.0,1.78760796]
[1751209701373,0.00257416,108020.0,108010.0,2.11177802]
[1751209710282,0.00257416,108020.0,108010.0,1.78760796]
[1751209711579,0.00257416,108020.0,108010.0,2.87110808]
[1751209711774,0.00157416,108040.0,108030.0,0.1850734]
[1751209712088,0.34993026,108040.0,108030.0,1.57846649]
[1751209712279,0.34993026,108040.0,108030.0,1.61016649]
[1751209712580,0.0889602,108040.0,108030.0,1.61016649]
[1751209713383,0.41313026,108040.0,108030.0,1.61016649]
[1751209713578,0.0889602,108040.0,108030.0,1.60216649]
[1751209714080,0.0949602,108040.0,108030.0,1.60216649]
[1751209714778,0.0626602,108040.0,108030.0,1.66316649]
[1751209715280,0.03447416,108040.0,108030.0,1.66316649]
[1751209715481,0.03447416,108040.0,108030.0,1.66416649]
[1751209716077,0.03247416,108040.0,108030.0,1.66716649]
[1751209719381,0.03247416,108040.0,108030.0,0.97568649]
[1751209719684,0.03247416,108040.0,108030.0,1.66684649]
[1751209724686,0.03247416,108040.0,108030.0,1.66656649]
[1751209725887,0.06487416,108040.0,108030.0,1.66656649]
[1751209730484,0.001,108050.0,108040.0,0.1850562]
[1751209730689,0.001,108050.0,108040.0,0.86439632]
[1751209730890,0.033,108050.0,108040.0,0.86439632]
[1751209731386,0.0632,108050.0,108040.0,1.55531632]
[1751209732587,0.0642,108050.0,108040.0,1.55531632]
[1751209732890,0.0642,108050.0,108040.0,1.55631632]
[1751209733688,0.08838321,108050.0,108040.0,1.55631632]
[1751209736490,0.0642,108050.0,108040.0,1.55611632]
[1751209737196,0.08839607,108050.0,108040.0,1.55611632]
[1751209737395,0.08839607,108050.0,108040.0,0.9077762]
[1751209737599,0.08839607,108050.0,108040.0,1.55611632]
[1751209739400,0.08839607,108050.0,108040.0,1.61701632]
[1751209742299,0.27343527,108050.0,108040.0,1.55611632]
[1751209743203,0.08839607,108050.0,108040.0,1.55611632]
[1751209743702,0.27343517,108050.0,108040.0,1.55611632]
[1751209743904,0.08839607,108050.0,108040.0,1.55611632]
[1751209744499,0.27343517,108050.0,108040.0,1.55575632]
[1751209744703,0.08839607,108050.0,108040.0,1.55575632]
[1751209745302,0.01189607,108050.0,108040.0,1.58785632]
[1751209745502,0.01189607,108050.0,108040.0,1.62025632]
[1751209747204,0.01189607,108050.0,108040.0,1.94442638]
[1751209747703,0.00157416,108060.0,108050.0,0.1850392]
[1751209748008,0.00157416,108060.0,108050.0,0.96470926]
[1751209748608,0.00157416,108060.0,108050.0,1.28887932]
[1751209749004,0.00357416,108060.0,108050.0,1.28887932]
[1751209749206,0.00357416,108060.0,108050.0,0.96470926]
[1751209749404,0.00357416,108060.0,108050.0,1.03874243]
[1751209750005,0.00357416,108060.0,108050.0,0.67794243]
[1751209750312,0.00357416,108060.0,108050.0,1.03874243]
[1751209750811,0.00357416,108060.0,108050.0,1.04799643]
[1751209751308,0.00357416,108060.0,108050.0,1.32516649]
[1751209751710,0.00357416,108060.0,108050.0,1.25113332]
[1751209752214,0.00357416,108060.0,108050.0,1.32516649]
[1751209752711,0.00357416,108060.0,108050.0,1.25113332]
[1751209754713,0.00157416,108060.0,108050.0,1.25513332]
[1751209755308,0.49143702,108080.0,108070.0,0.1850049]
[1751209755509,0.0304,108080.0,108070.0,1.19929496]
[1751209755705,0.0304,108080.0,108070.0,1.22939496]
[1751209756516,0.0304,108080.0,108070.0,1.29179496]
[1751209756817,0.0304,108080.0,108070.0,1.36849324]
[1751209757217,0.0304,108080.0,108070.0,1.37149324]
[1751209757816,1.02343966,108090.0,108080.0,0.1849878]
[1751209758114,1.05613966,108090.0,108080.0,0.50915786]
[1751209759712,1.08031456,108090.0,108080.0,0.50915786]
[1751209760215,1.08031456,108090.0,108080.0,0.51015786]
[1751209760519,1.08131456,108090.0,108080.0,0.51015786]
[1751209762917,1.08131456,108090.0,108080.0,0.1859878]
[1751209763218,1.08131456,108090.0,108080.0,0.51015786]
[1751209766819,0.7571445,108090.0,108080.0,0.51015786]
[1751209767020,1.08131456,108090.0,108080.0,0.51015786]
[1751209771927,1.08119358,108090.0,108080.0,0.51015786]
[1751209772531,0.75702352,108090.0,108080.0,0.51015786]
[1751209772730,1.08119358,108090.0,108080.0,0.54035786]
[1751209773330,0.71077742,108090.0,108080.0,0.54035786]
[1751209773530,1.03494748,108090.0,108080.0,0.2161878]
[1751209773732,0.71077742,108090.0,108080.0,0.54035786]
[1751209774030,1.03494748,108090.0,108080.0,0.54035786]
[1751209776336,1.01089356,108090.0,108080.0,0.54035786]
[1751209776538,1.03496397,108090.0,108080.0,0.001]
[1751209776833,2.1046141,108090.0,108080.0,0.001]
[1751209777042,2.08054362,108090.0,108080.0,0.001]
[1751209777232,2.10461942,108090.0,108080.0,0.001]
[1751209779133,1.74381942,108090.0,108080.0,0.001]
[1751209779338,2.46541942,108090.0,108080.0,0.001]
[1751209779538,2.14124936,108090.0,108080.0,0.001]
[1751209779934,2.46541942,108090.0,108080.0,0.001]
[1751209789849,2.28037942,108090.0,108080.0,0.001]
[1751209790747,2.46541942,108090.0,108080.0,0.001]
[1751209794759,2.28037942,108090.0,108080.0,0.001]
[1751209800460,2.28037942,108090.0,108080.0,0.0319]
[1751209803762,2.25017942,108090.0,108080.0,0.0319]
[1751209803957,2.25017942,108090.0,108080.0,0.0953]
[1751209805959,1.86250936,108090.0,108080.0,0.0953]
[1751209809762,1.86250936,108090.0,108080.0,0.2802879]
[1751209814570,1.86250936,108090.0,108080.0,0.0953]
[1751209816970,1.86250936,108090.0,108080.0,0.2802878]
[1751209817472,1.86250936,108090.0,108080.0,0.0953]
[1751209818860,1.86250936,108090.0,108080.0,0.2802879]
[1751209823377,1.30206936,108090.0,108080.0,0.2802879]
[1751209823576,1.86234936,108090.0,108080.0,0.2802879]
[1751209827266,1.89424936,108090.0,108080.0,0.2802879]
[1751209828976,1.92724936,108090.0,108080.0,0.2802879]
[1751209830280,1.20564936,108090.0,108080.0,0.2802879]
[1751209830483,1.92724936,108090.0,108080.0,0.2802879]
[1751209830783,1.92724936,108090.0,108080.0,0.60445796]
[1751209830784,1.86230936,108090.0,108080.0,0.60445796]
[1751209831674,1.86230936,108090.0,108080.0,0.2802879]
[1751209832686,1.30206936,108090.0,108080.0,0.2802879]
[1751209833077,1.30206936,108090.0,108080.0,0.60445796]
[1751209838883,1.33486936,108090.0,108080.0,0.60445796]
[1751209845288,1.33486936,108090.0,108080.0,0.2802879]
[1751209845586,1.33486936,108090.0,108080.0,0.2168879]
[1751209845885,1.36586936,108090.0,108080.0,0.2168879]
[1751209852392,1.39676936,108090.0,108080.0,0.2168879]
[1751209854293,1.39676936,108090.0,108080.0,0.1706979]
[1751209865192,1.39676936,108090.0,108080.0,0.2023979]
[1751209865899,1.62166936,108090.0,108080.0,0.2023979]
[1751209869502,1.62166936,108090.0,108080.0,0.52656796]
[1751209870103,1.62166936,108090.0,108080.0,0.2023979]
[1751209870903,1.62166936,108090.0,108080.0,0.1706979]
[1751209874707,1.59759356,108090.0,108080.0,0.1706979]
[1751209876312,0.1849879,108080.0,108070.0,0.41769058]
[1751209876506,0.89039314,108080.0,108070.0,0.74186064]
[1751209876806,0.89039314,108080.0,108070.0,0.69560954]
[1751209877007,0.95179314,108080.0,108070.0,0.63110954]
[1751209877500,1.31259314,108080.0,108070.0,0.07969828]
[1751209877705,1.87247314,108080.0,108070.0,0.26470328]
[1751209879416,1.87247314,108080.0,108070.0,0.26270328]
[1751209879609,1.31359314,108080.0,108070.0,0.07669828]
[1751209882310,0.1850221,108060.0,108050.0,0.36853894]
[1751209882508,0.50919216,108060.0,108050.0,0.73945064]
[1751209882715,0.50919216,108060.0,108050.0,0.77175064]
[1751209883014,0.51842322,108060.0,108050.0,0.77175064]
[1751209883617,0.51842322,108060.0,108050.0,0.77875064]
[1751209883818,0.51842322,108060.0,108050.0,0.70471786]
[1751209884518,0.51842322,108060.0,108050.0,0.70271786]
[1751209884815,0.51842322,108060.0,108050.0,0.69871786]
[1751209885016,0.51842322,108060.0,108050.0,0.70171786]
[1751209885717,0.51842322,108060.0,108050.0,0.3775478]
[1751209885919,0.51842322,108060.0,108050.0,0.70171786]
[1751209888817,0.51842322,108060.0,108050.0,0.65545896]
[1751209891021,0.84259328,108060.0,108050.0,0.65545896]
[1751209891816,0.84259328,108060.0,108050.0,0.2850302]
[1751209892123,0.86649383,108060.0,108050.0,0.1]
[1751209892326,1.20339328,108060.0,108050.0,0.0671]
[1751209892516,1.29699328,108060.0,108050.0,0.0671]
[1751209894025,1.29699328,108060.0,108050.0,0.2521392]
[1751209894727,0.87922322,108060.0,108050.0,0.57630926]
[1751209895025,0.87922322,108060.0,108050.0,0.60730926]
[1751209898130,1.20339328,108060.0,108050.0,0.60730926]
[1751209901529,1.23489328,108060.0,108050.0,0.60730926]
[1751209902232,0.87409328,108060.0,108050.0,0.60730926]
[1751209902429,1.23489328,108060.0,108050.0,0.2831392]
[1751209902630,1.23489328,108060.0,108050.0,0.60730926]
[1751209904833,1.23489328,108060.0,108050.0,0.004]
[1751209905229,1.29709328,108060.0,108050.0,0.004]
[1751209908837,1.32098709,108060.0,108050.0,0.004]
[1751209911338,1.32098709,108060.0,108050.0,0.1890392]
[1751209912636,1.32098709,108060.0,108050.0,0.2222392]
[1751209914542,0.67264697,108060.0,108050.0,0.2222392]
[1751209914841,1.32098709,108060.0,108050.0,0.2222392]
[1751209917138,1.32098709,108060.0,108050.0,0.0372]
[1751209921943,0.96018709,108060.0,108050.0,0.0372]
[1751209922142,1.32098709,108060.0,108050.0,0.0372]
[1751209929255,1.32098709,108060.0,108050.0,0.004]
[1751209942376,1.32098709,108060.0,108050.0,0.1890392]
[1751209943171,1.32098709,108060.0,108050.0,0.004]
[1751209943975,0.96018709,108060.0,108050.0,0.004]
[1751209944176,1.32098709,108060.0,108050.0,0.004]
[1751209957082,0.96018709,108060.0,108050.0,0.004]
[1751209957382,1.32098709,108060.0,108050.0,0.004]
[1751209962190,0.67264697,108060.0,108050.0,0.004]
[1751209962486,1.32098709,108060.0,108050.0,0.004]
[1751209972297,0.96018709,108060.0,108050.0,0.004]
[1751209972492,1.32098709,108060.0,108050.0,0.004]
[1751209981604,1.32107472,108060.0,108050.0,0.004]
[1751209985703,0.6727346,108060.0,108050.0,0.004]
[1751209985903,1.32107472,108060.0,108050.0,0.004]
[1751209988106,0.6727346,108060.0,108050.0,0.004]
[1751209988300,1.32107472,108060.0,108050.0,0.004]
[1751209990206,0.8939736,108060.0,108050.0,0.51320926]
[1751209990408,0.8939736,108060.0,108050.0,0.60620926]
[1751209992610,0.56980354,108060.0,108050.0,0.60620926]
[1751209992907,0.8939736,108060.0,108050.0,0.60620926]
[1751209993801,0.5331736,108060.0,108050.0,0.60620926]
[1751210001708,0.89034366,108060.0,108050.0,0.2820392]
[1751210002007,0.5661736,108060.0,108050.0,0.60620926]
[1751210004909,0.89034366,108060.0,108050.0,0.60620926]
[1751210006915,0.89034366,108060.0,108050.0,0.42117006]
[1751210008113,0.89034366,108060.0,108050.0,0.60620926]
[1751210009214,0.5661736,108060.0,108050.0,0.60620926]
[1751210026325,0.5661736,108060.0,108050.0,0.2820392]
[1751210026525,0.5661736,108060.0,108050.0,0.60620926]
[1751210027921,0.5661736,108060.0,108050.0,0.2820392]
[1751210028224,0.5661736,108060.0,108050.0,0.60620926]
[1751210029124,0.5661736,108060.0,108050.0,0.42117006]
[1751210030125,0.5661736,108060.0,108050.0,0.60620926]
[1751210039437,0.5661736,108060.0,108050.0,0.2820392]
[1751210039624,0.5661736,108060.0,108050.0,0.60620926]
[1751210040429,0.9269736,108060.0,108050.0,0.097]
[1751210040630,1.28304366,108060.0,108050.0,0.097]
[1751210043531,0.63470354,108060.0,108050.0,0.42117006]
[1751210043724,1.28304366,108060.0,108050.0,0.42117006]
[1751210047237,1.28304366,108060.0,108050.0,0.097]
[1751210047536,1.31454366,108060.0,108050.0,0.097]
[1751210055142,0.95374366,108060.0,108050.0,0.097]
[1751210055341,1.31454366,108060.0,108050.0,0.097]
[1751210058943,1.31454366,108060.0,108050.0,0.42117006]
[1751210059447,1.31454366,108060.0,108050.0,0.38907006]
[1751210061345,1.31454366,108060.0,108050.0,0.0649]
[1751210064146,1.31454366,108060.0,108050.0,0.2499392]
[1751210064546,1.31454366,108060.0,108050.0,0.0649]
[1751210068049,1.31454366,108060.0,108050.0,0.38907006]
[1751210069952,0.95374366,108060.0,108050.0,0.38907006]
[1751210070249,1.31454366,108060.0,108050.0,0.38907006]
[1751210071246,1.31454366,108060.0,108050.0,0.0649]
[1751210073438,1.31454366,108060.0,108050.0,0.2499392]
[1751210074450,1.31454366,108060.0,108050.0,0.0649]
[1751210075046,0.95374366,108060.0,108050.0,0.0649]
[1751210075250,1.31454366,108060.0,108050.0,0.0649]
[1751210076651,0.95374366,108060.0,108050.0,0.0649]
[1751210076853,1.31454366,108060.0,108050.0,0.0649]
[1751210079650,0.66620354,108060.0,108050.0,0.0649]
[1751210079850,1.31454366,108060.0,108050.0,0.0649]
[1751210080155,1.31454366,108060.0,108050.0,0.38907006]
[1751210081057,0.95374366,108060.0,108050.0,0.38907006]
[1751210081258,1.31454366,108060.0,108050.0,0.38907006]
[1751210083159,0.95374366,108060.0,108050.0,0.38907006]
[1751210083358,1.31454366,108060.0,108050.0,0.38907006]
[1751210085660,0.95374366,108060.0,108050.0,0.38907006]
[1751210085862,1.31454366,108060.0,108050.0,0.38907006]
[1751210094469,1.31454366,108060.0,108050.0,0.0649]
[1751210096275,0.95374366,108060.0,108050.0,0.0649]
[1751210096474,1.31454366,108060.0,108050.0,0.0649]
[1751210096876,0.66620354,108060.0,108050.0,0.0649]
[1751210097174,1.31454366,108060.0,108050.0,0.0649]
[1751210098374,1.31454366,108060.0,108050.0,0.38907006]
[1751210099178,0.95374366,108060.0,108050.0,0.38907006]
[1751210099369,1.31454366,108060.0,108050.0,0.38907006]
[1751210100177,1.31454366,108060.0,108050.0,0.004]
[1751210101881,0.1850392,108050.0,108040.0,0.01770406]
[1751210102084,1.31096076,108050.0,108040.0,0.01770406]
[1751210102572,1.31096076,108050.0,108040.0,0.00092554]
[1751210102779,0.1850735,108030.0,108020.0,0.15514097]
[1751210103081,0.87004356,108030.0,108020.0,0.15514097]
[1751210103273,0.96284356,108030.0,108020.0,0.47931103]
[1751210103468,0.96284356,108030.0,108020.0,0.46079797]
[1751210103672,0.96284356,108030.0,108020.0,0.13662791]
[1751210103874,0.9720776,108030.0,108020.0,0.13662791]
[1751210104479,0.9720776,108030.0,108020.0,0.0666]
[1751210105280,0.9720776,108030.0,108020.0,0.14062791]
[1751210105476,0.9720776,108030.0,108020.0,0.14262791]
[1751210105683,0.9393776,108030.0,108020.0,0.57786066]
[1751210105881,0.9393776,108030.0,108020.0,0.60896066]
[1751210106077,0.93014356,108030.0,108020.0,0.60896066]
[1751210106779,0.53924356,108030.0,108020.0,0.60896066]
[1751210106983,0.50924356,108030.0,108020.0,0.68298857]
[1751210107376,0.50924356,108030.0,108020.0,0.60896066]
[1751210112087,0.73414356,108030.0,108020.0,0.60896066]
[1751210116486,0.4099735,108030.0,108020.0,0.60896066]
[1751210116688,0.73414356,108030.0,108020.0,0.60896066]
[1751210116987,0.73414356,108030.0,108020.0,0.96976066]
[1751210117789,0.2249,108030.0,108020.0,1.29393072]
[1751210117992,0.2249,108030.0,108020.0,0.93313072]
[1751210118182,0.2249,108030.0,108020.0,1.29393072]
[1751210119590,0.2249,108030.0,108020.0,1.36795863]
[1751210124589,0.4099734,108030.0,108020.0,1.36795863]
[1751210125192,0.4099734,108030.0,108020.0,1.29393072]
[1751210125391,0.4099734,108030.0,108020.0,1.36795863]
[1751210131092,0.4099734,108030.0,108020.0,0.44082791]
[1751210131093,0.73414346,108030.0,108020.0,0.44082791]
[1751210131299,1.53561879,108030.0,108020.0,0.56432]
[1751210131498,1.21144873,108030.0,108020.0,0.56432]
[1751210132197,1.53561879,108030.0,108020.0,0.006]
[1751210132598,0.1850906,108020.0,108010.0,0.14990935]
[1751210132801,1.25533072,108020.0,108010.0,0.07588144]
[1751210132998,1.27944437,108020.0,108010.0,0.0009258]
[1751210133201,1.25533072,108020.0,108010.0,0.0009258]
[1751210133705,1.83775691,108020.0,108010.0,0.0039258]
[1751210134108,1.83775691,108020.0,108010.0,0.0059258]
[1751210135405,1.81365072,108020.0,108010.0,0.0059258]
[1751210135603,1.83773914,108020.0,108010.0,0.0059258]
[1751210138409,1.81365072,108020.0,108010.0,0.0059258]
[1751210138709,1.8376757,108020.0,108010.0,0.0059258]
[1751210139307,1.81365072,108020.0,108010.0,0.0059258]
[1751210139708,1.83767098,108020.0,108010.0,0.0059258]
[1751210142206,1.81365072,108020.0,108010.0,0.0059258]
[1751210146114,2.13782078,108020.0,108010.0,0.0059258]
[1751210147913,1.81365072,108020.0,108010.0,0.0059258]
[1751210151412,1.83764498,108020.0,108010.0,0.0059258]
[1751210152918,2.19844498,108020.0,108010.0,0.0059258]
[1751210156521,2.23054498,108020.0,108010.0,0.0059258]
[1751210158023,2.45554498,108020.0,108010.0,0.0059258]
[1751210160523,1.24888486,108020.0,108010.0,0.0059258]
[1751210160724,2.45558498,108020.0,108010.0,0.0059258]
[1751210178142,1.80402498,108020.0,108010.0,0.1910335]
[1751210178342,1.80402498,108020.0,108010.0,0.0966258]
[1751210179641,1.80402498,108020.0,108010.0,0.2817335]
[1751210182439,0.43408486,108020.0,108010.0,0.60590356]
[1751210182741,1.08242498,108020.0,108010.0,0.2817335]
[1751210193250,1.08242498,108020.0,108010.0,0.0966258]
[1751210193550,1.14622498,108020.0,108010.0,0.0966258]
[1751210196454,1.17912498,108020.0,108010.0,0.0966258]
[1751210197651,1.17912498,108020.0,108010.0,0.2817335]
[1751210201555,1.53992498,108020.0,108010.0,0.0966258]
[1751210201752,1.53992498,108020.0,108010.0,0.0059258]
[1751210207360,1.53992498,108020.0,108010.0,0.1910335]
[1751210212264,1.17912498,108020.0,108010.0,0.1910335]
[1751210212463,1.53992498,108020.0,108010.0,0.1910335]
[1751210213869,1.53992498,108020.0,108010.0,0.0059258]
[1751210214365,1.86409504,108020.0,108010.0,0.0059258]
[1751210214761,0.1851248,108000.0,107990.0,0.64392437]
[1751210214965,0.83346492,108000.0,107990.0,1.43358057]
[1751210215169,0.92816492,108000.0,107990.0,1.5076412]
[1751210215664,0.93733051,108000.0,107990.0,1.5076412]
[1751210215864,0.93733051,108000.0,107990.0,0.9094646]
[1751210216065,0.93833051,108000.0,107990.0,0.9164646]
[1751210216266,0.93833051,108000.0,107990.0,0.75020397]
[1751210216566,0.93833051,108000.0,107990.0,0.82425077]
[1751210216763,0.93833051,108000.0,107990.0,0.73168147]
[1751210218469,0.93833051,108000.0,107990.0,0.65763467]
[1751210219166,0.93833051,108000.0,107990.0,0.72023467]
[1751210219672,0.93933051,108000.0,107990.0,0.72423467]
[1751210222163,0.96282626,108000.0,107990.0,0.72423467]
[1751210223267,0.93933051,108000.0,107990.0,0.72423467]
[1751210223466,0.96282427,108000.0,107990.0,0.66163467]
[1751210225367,0.31448415,108000.0,107990.0,0.72273467]
[1751210225573,0.93202427,108000.0,107990.0,0.75283467]
[1751210226572,0.93202427,108000.0,107990.0,0.76726141]
[1751210227973,0.93202427,108000.0,107990.0,0.76726098]
[1751210228473,0.93102427,108000.0,107990.0,0.76526098]
[1751210230873,0.96422427,108000.0,107990.0,0.76526098]
[1751210231072,1.18922427,108000.0,107990.0,0.76526098]
[1751210231678,1.18822427,108000.0,107990.0,0.75826098]
[1751210231881,1.18822427,108000.0,107990.0,0.76026098]
[1751210232264,1.18822427,108000.0,107990.0,0.73016098]
[1751210232670,1.18822427,108000.0,107990.0,0.66906098]
[1751210233481,1.18822427,108000.0,107990.0,0.12312988]
[1751210233775,1.52553051,108000.0,107990.0,0.03244319]
[1751210233971,1.54900335,108000.0,107990.0,0.03244319]
[1751210234371,1.52553051,108000.0,107990.0,0.03244319]
[1751210234972,1.5489987,108000.0,107990.0,0.03244319]
[1751210235873,0.1851419,107990.0,107980.0,0.00250084]
[1751210236183,1.83662306,107990.0,107980.0,0.00250084]
[1751210236972,1.83762306,107990.0,107980.0,0.00650084]
[1751210237881,1.83762306,107990.0,107980.0,0.00950084]
[1751210239574,0.1851763,107970.0,107960.0,0.18675279]
[1751210239780,0.83351642,107970.0,107960.0,0.18638101]
[1751210239980,1.45441642,107970.0,107960.0,0.18638101]
[1751210240372,1.83858597,107970.0,107960.0,0.00120301]
[1751210240676,0.1851934,107960.0,107950.0,0.00092631]
[1751210240877,1.31480307,107960.0,107950.0,0.00092631]
[1751210241676,1.29143352,107960.0,107950.0,0.00092631]
[1751210241878,0.96762117,107960.0,107950.0,0.00092631]
[1751210242571,0.96862117,107960.0,107950.0,0.00492631]
[1751210243779,1.52710117,107960.0,107950.0,0.19013691]
[1751210243981,1.52710117,107960.0,107950.0,0.00492631]
[1751210244181,1.52710117,107960.0,107950.0,0.19013691]
[1751210244377,1.52810117,107960.0,107950.0,0.19213691]
[1751210244979,1.52810117,107960.0,107950.0,0.00692631]
[1751210245476,0.96962117,107960.0,107950.0,0.00692631]
[1751210245677,1.52822117,107960.0,107950.0,0.00692631]
[1751210246177,0.96962117,107960.0,107950.0,0.00692631]
[1751210246377,1.52822117,107960.0,107950.0,0.00692631]
[1751210246578,0.96962117,107960.0,107950.0,0.00692631]
[1751210246777,1.52818117,107960.0,107950.0,0.00692631]
[1751210247781,1.52818117,107960.0,107950.0,0.02140389]
[1751210247986,0.96962117,107960.0,107950.0,0.02140389]
[1751210248286,1.52822117,107960.0,107950.0,0.02140389]
[1751210249588,1.43112117,107960.0,107950.0,0.20661449]
[1751210249888,1.43112117,107960.0,107950.0,0.27101449]
[1751210250187,1.49282117,107960.0,107950.0,0.27101449]
[1751210250485,1.49282117,107960.0,107950.0,0.04591449]
[1751210250686,1.49282117,107960.0,107950.0,0.23112509]
[1751210252992,1.49282117,107960.0,107950.0,0.2165106]
[1751210263208,1.49282117,107960.0,107950.0,0.23098805]
[1751210264301,1.51599022,107960.0,107950.0,0.23098805]
[1751210264511,0.92689022,107960.0,107950.0,0.23098805]
[1751210264704,1.48553022,107960.0,107950.0,0.26138805]
[1751210265811,1.80993339,107960.0,107950.0,0.26138805]
[1751210266712,1.80993339,107960.0,107950.0,0.29438805]
[1751210267006,1.22009339,107960.0,107950.0,0.29438805]
[1751210267313,0.89562792,107960.0,107950.0,0.61885352]
[1751210267609,0.89562792,107960.0,107950.0,0.29438805]
[1751210267911,0.89557592,107960.0,107950.0,0.29438805]
[1751210269203,0.57116245,107960.0,107950.0,0.29438805]
[1751210269411,0.89557592,107960.0,107950.0,0.29438805]
[1751210271013,0.92817592,107960.0,107950.0,0.29438805]
[1751210274517,0.89557592,107960.0,107950.0,0.29438805]
[1751210278416,0.89557592,107960.0,107950.0,0.2799106]
[1751210278616,0.89557592,107960.0,107950.0,0.29438762]
[1751210283719,0.92827592,107960.0,107950.0,0.29438762]
[1751210286514,0.53477592,107960.0,107950.0,0.65518762]
[1751210287121,0.51160687,107960.0,107950.0,0.65518762]
[1751210287324,0.51160687,107960.0,107950.0,0.72923442]
[1751210288625,0.54470687,107960.0,107950.0,0.72923442]
[1751210289328,0.54470687,107960.0,107950.0,0.65518762]
[1751210289825,0.54470266,107960.0,107950.0,0.97959688]
[1751210296028,0.54470266,107960.0,107950.0,0.96511986]
[1751210299432,0.54470266,107960.0,107950.0,1.03916666]
[1751210301233,0.54470266,107960.0,107950.0,0.96511986]
[1751210304235,0.86911192,107960.0,107950.0,0.5460106]
[1751210304532,0.1852106,107950.0,107940.0,0.00157479]
[1751210304721,0.92912912,107950.0,107940.0,0.07561475]
[1751210304927,1.28992912,107950.0,107940.0,0.07561475]
[1751210305123,1.28992912,107950.0,107940.0,0.00157479]
[1751210305531,1.31309259,107950.0,107940.0,0.00157479]
[1751210305832,1.31409259,107950.0,107940.0,0.00857479]
[1751210306428,1.31509259,107950.0,107940.0,0.01457479]
[1751210307028,1.31409259,107950.0,107940.0,0.00857479]
[1751210307326,1.31409259,107950.0,107940.0,0.01057479]
[1751210307726,0.66527407,107950.0,107940.0,0.00557479]
[1751210307926,0.98986095,107950.0,107940.0,0.00557479]
[1751210309035,0.98986095,107950.0,107940.0,0.02005418]
[1751210309333,0.98986095,107950.0,107940.0,0.03453357]
[1751210309935,0.62906095,107950.0,107940.0,0.03453357]
[1751210310231,1.35066095,107950.0,107940.0,0.03453357]
[1751210312438,1.35982764,107950.0,107940.0,0.03453357]
[1751210313136,1.35982764,107950.0,107940.0,0.02005418]
[1751210313638,1.35982764,107950.0,107940.0,0.03453357]
[1751210314136,1.35982764,107950.0,107940.0,0.02005418]
[1751210314338,1.33666417,107950.0,107940.0,0.02005418]
[1751210314635,1.35974307,107950.0,107940.0,0.02005418]
[1751210315136,1.33666417,107950.0,107940.0,0.02005418]
[1751210317439,1.66125105,107950.0,107940.0,0.02005418]
[1751210317736,1.33666417,107950.0,107940.0,0.02005418]
[1751210318638,1.66125105,107950.0,107940.0,0.02005418]
[1751210318938,0.1852449,107930.0,107920.0,1.26835066]
[1751210319232,0.87063178,107930.0,107920.0,0.29392262]
[1751210319435,1.00200111,107930.0,107920.0,0.24760782]
[1751210319637,1.06560111,107930.0,107920.0,0.24760782]
[1751210319831,1.06560111,107930.0,107920.0,0.21670782]
[1751210320032,1.06660111,107930.0,107920.0,0.03646032]
[1751210320839,1.06660111,107930.0,107920.0,0.03346032]
[1751210321039,1.06860111,107930.0,107920.0,0.04146032]
[1751210321428,1.06660111,107930.0,107920.0,0.03346032]
[1751210321635,1.06760111,107930.0,107920.0,0.03446032]
[1751210322040,1.06660111,107930.0,107920.0,0.03346032]
[1751210322339,1.06960111,107930.0,107920.0,0.03446032]
[1751210322941,1.07060111,107930.0,107920.0,0.03346032]
[1751210324140,1.04752242,107930.0,107920.0,0.03346032]
[1751210326138,1.04552242,107930.0,107920.0,0.03246032]
[1751210326443,1.04752242,107930.0,107920.0,0.03346032]
[1751210327444,0.98392242,107930.0,107920.0,0.21872232]
[1751210327647,0.98092242,107930.0,107920.0,0.25002232]
[1751210327936,0.98092242,107930.0,107920.0,0.25102232]
[1751210327937,0.98392242,107930.0,107920.0,0.25102232]
[1751210329346,0.98392242,107930.0,107920.0,0.28182232]
[1751210329847,0.98394742,107930.0,107920.0,0.28182232]
[1751210331247,0.62613554,107930.0,107920.0,0.6064342]
[1751210331453,0.58994742,107930.0,107920.0,0.6064342]
[1751210333861,0.26533554,107930.0,107920.0,0.28182232]
[1751210335859,0.9506902,107930.0,107920.0,0.03346032]
[1751210336061,1.06910457,107930.0,107920.0,0.03346032]
[1751210349674,1.06910457,107930.0,107920.0,0.01898084]
[1751210350173,1.06910457,107930.0,107920.0,0.03346185]
[1751210352673,1.62846457,107930.0,107920.0,0.03346185]
[1751210353175,1.6053502,107930.0,107920.0,0.03346185]
[1751210355775,1.93009696,107930.0,107920.0,0.03346185]
[1751210361081,1.56929696,107930.0,107920.0,0.03346185]
[1751210361379,1.93009696,107930.0,107920.0,0.03346185]
[1751210362879,1.9531154,107930.0,107920.0,0.03346185]
[1751210366379,1.9531154,107930.0,107920.0,0.10750181]
[1751210372085,1.9531154,107930.0,107920.0,0.03346185]
[1751210373084,1.3286554,107930.0,107920.0,0.03346185]
[1751210373385,1.56480469,107930.0,107920.0,0.09806185]
[1751210373685,1.8894554,107930.0,107920.0,0.09806185]
[1751210374185,1.3286554,107930.0,107920.0,0.09806185]
[1751210374681,1.24007398,107930.0,107920.0,0.28332385]
[1751210374885,1.56472469,107930.0,107920.0,0.12926185]
[1751210375785,1.00400469,107930.0,107920.0,0.31452385]
[1751210375986,1.54170625,107930.0,107920.0,0.20330181]
[1751210377185,1.56484985,107930.0,107920.0,0.20330181]
[1751210378689,1.88950056,107930.0,107920.0,0.17210181]
[1751210378984,1.62494985,107930.0,107920.0,0.17210137]
[1751210379687,1.56484985,107930.0,107920.0,0.17210137]
[1751210380286,0.64332985,107930.0,107920.0,0.35736337]
[1751210380487,1.18106625,107930.0,107920.0,0.35736337]
[1751210380676,1.18106625,107930.0,107920.0,0.38816337]
[1751210382389,0.62018625,107930.0,107920.0,0.38816337]
[1751210383690,0.62018625,107930.0,107920.0,0.31412341]
[1751210385593,0.62018625,107930.0,107920.0,0.71281408]
[1751210385594,0.51489561,107930.0,107920.0,0.71281408]
[1751210386293,0.1902448,107930.0,107920.0,1.39826479]
[1751210386586,0.1902448,107930.0,107920.0,1.07361408]
[1751210387188,0.51489551,107930.0,107920.0,1.07361408]
[1751210388191,0.51489551,107930.0,107920.0,1.63425408]
[1751210388991,0.1902448,107930.0,107920.0,1.63425408]
[1751210389192,0.51489551,107930.0,107920.0,1.63425408]
[1751210389896,0.32965071,107930.0,107920.0,1.63425408]
[1751210390696,0.50989281,107940.0,107930.0,0.1852448]
[1751210390994,0.50989281,107940.0,107930.0,0.63255556]
[1751210391396,0.50989281,107940.0,107930.0,0.76155556]
[1751210391798,0.50989281,107940.0,107930.0,0.83559552]
[1751210391996,0.51289281,107940.0,107930.0,0.83559552]
[1751210392796,0.51189281,107940.0,107930.0,0.83659552]
[1751210393190,0.51589281,107940.0,107930.0,0.83759552]
[1751210393793,0.006,107940.0,107930.0,0.83759552]
[1751210394004,0.006,107940.0,107930.0,1.10987608]
[1751210394197,0.003,107940.0,107930.0,1.11087608]